bitfinex-derivatives/quotes_SOLF0:USTF0_20250714
["timestamp","ask_amount","ask_price","bid_price","bid_amount"]
[1752479018720,5.9847,167.05,167.02,3.65]
[1752479018920,9.3847,167.05,167.02,3.65]
[1752479020216,3.4,167.05,167.02,5.9857]
[1752479020420,3.4,167.05,167.03,3.65]
[1752479020812,9.3848,167.05,167.01,5.986]
[1752479021018,3.4,167.06,167.0,3.65]
[1752479021221,3.4,167.05,167.0,3.65]
[1752479021422,5.9854,167.04,167.0,9.6365]
[1752479021618,5.9854,167.04,167.01,3.65]
[1752479021819,9.3854,167.04,167.01,3.65]
[1752479022619,9.3855,167.03,167.01,3.65]
[1752479022914,3.16102837,167.06,167.01,3.65]
[1752479023116,3.16102837,167.04,166.99,3.65]
[1752479023313,3.4,167.05,166.96,3.65]
[1752479023314,3.4,167.01,166.96,3.65]
[1752479023518,3.4,167.0,166.96,3.65]
[1752479023820,3.4,166.99,166.95,3.65]
[1752479024014,3.4,166.97,166.95,3.65]
[1752479024216,9.3879,166.96,166.95,3.65]
[1752479024418,3.4,166.96,166.95,3.65]
[1752479024621,3.16102837,166.98,166.95,3.65]
[1752479024824,9.3876,166.97,166.96,3.65]
[1752479026018,3.4,166.97,166.96,3.65]
[1752479026919,3.4,166.97,166.91,3.65]
[1752479028125,3.4,166.95,166.89,4.94821179]
[1752479028327,3.4,166.88,166.8,3.65]
[1752479028522,6.56102837,166.84,166.76,3.65]
[1752479028927,6.56102837,166.84,166.77,3.16102837]
[1752479029123,6.56102837,166.84,166.78,3.65]
[1752479029320,3.4,166.88,166.82,3.65]
[1752479029525,3.4,166.9,166.84,3.65]
[1752479030217,3.16102837,166.89,166.85,3.65]
[1752479030417,3.4,166.86,166.85,3.65]
[1752479030619,9.3915,166.86,166.85,3.65]
[1752479030935,3.16102837,166.87,166.8,9.15462837]
[1752479031118,9.3919,166.85,166.84,3.65]
[1752479031429,3.4,166.86,166.79,3.16102837]
[1752479031624,3.4,166.86,166.8,3.65]
[1752479031829,5.9925,166.84,166.8,3.65]
[1752479032328,5.9927,166.83,166.8,3.65]
[1752479033025,5.9923,166.84,166.8,9.6437]
[1752479033227,5.9923,166.84,166.81,3.65]
[1752479033825,5.9929,166.83,166.8,3.65]
[1752479034025,3.16102837,166.87,166.8,3.65]
[1752479034225,5.9921,166.85,166.8,9.6436]
[1752479034525,3.4,166.85,166.81,3.65]
[1752479034829,5.9927,166.83,166.81,3.65]
[1752479035128,3.4,166.84,166.81,3.65]
[1752479035328,5.9919,166.85,166.81,6.81102837]
[1752479035625,5.9919,166.85,166.82,3.65]
[1752479035826,9.3919,166.85,166.82,3.65]
[1752479036019,3.16102837,166.89,166.82,3.65]
[1752479036223,3.4,166.88,166.82,3.65]
[1752479037029,9.3918,166.86,166.82,3.65]
[1752479037327,3.4,166.85,166.82,3.65]
[1752479038229,9.3918,166.86,166.83,3.65]
[1752479038424,9.3918,166.86,166.84,3.65]
[1752479038630,9.3919,166.85,166.84,3.65]
[1752479039532,3.4,166.85,166.84,3.65]
[1752479040123,9.3919,166.85,166.84,3.65]
[1752479040526,3.4,166.84,166.82,3.65]
[1752479040729,3.4,166.83,166.82,3.65]
[1752479041126,3.4,166.83,166.67,145.96852544]
[1752479041127,3.4,166.82,166.74,3.65]
[1752479041333,3.4,166.8,166.74,3.65]
[1752479041835,3.4,166.79,166.78,3.65]
[1752479042229,9.394,166.79,166.78,3.65]
[1752479042928,3.16102837,166.81,166.78,3.65]
[1752479042929,3.4,166.84,166.78,3.65]
[1752479043127,3.4,166.84,166.78,6.81102837]
[1752479043323,9.3926,166.83,166.8,3.65]
[1752479043528,3.4,166.84,166.8,3.65]
[1752479043834,3.4,166.82,166.81,3.65]
[1752479044034,3.4,166.85,166.79,3.65]
[1752479044734,5.9924,166.84,166.8,5.9936]
[1752479044929,9.3924,166.84,166.82,3.65]
[1752479045935,5.9926,166.83,166.82,3.65]
[1752479046434,9.5626,166.83,166.82,3.65]
[1752479046632,5.9937,166.8,166.79,3.33]
[1752479046832,3.57,166.81,166.79,3.33]
[1752479047032,3.16102837,166.82,166.79,3.33]
[1752479047233,9.5642,166.79,166.78,3.33]
[1752479047836,3.57,166.79,166.78,3.33]
[1752479048134,3.57,166.81,166.79,3.33]
[1752479048335,9.5637,166.8,166.79,3.33]
[1752479048535,9.5637,166.8,166.69,3.33]
[1752479048536,3.57,166.79,166.69,3.33]
[1752479048738,33.14272837,166.88,166.69,3.33]
[1752479048739,6.73102837,166.77,166.73,5.996]
[1752479048936,3.57,166.76,166.73,5.996]
[1752479049136,9.5654,166.76,166.75,3.33]
[1752479049440,3.57,166.76,166.69,3.33]
[1752479049637,3.57,166.76,166.69,6.49102837]
[1752479049838,3.57,166.76,166.7,3.33]
[1752479050240,5.9956,166.75,166.71,5.9969]
[1752479050630,3.57,166.75,166.73,3.33]
[1752479051141,3.57,166.74,166.73,3.33]
[1752479052241,3.57,166.73,166.7,3.33]
[1752479052443,3.16102837,166.75,166.7,3.33]
[1752479052639,3.57,166.75,166.73,3.33]
[1752479052839,3.16102837,166.77,166.72,5.9965]
[1752479053046,6.73102837,166.77,166.73,3.33]
[1752479053343,701.14,166.8,166.64,3.16102837]
[1752479053344,704.30102837,166.8,166.64,3.16102837]
[1752479053553,3.57,166.79,166.73,3.33]
[1752479053842,3.57,166.77,166.73,3.33]
[1752479054337,9.5649,166.77,166.74,3.33]
[1752479054545,3.57,166.77,166.75,3.33]
[1752479054848,3.57,166.76,166.75,3.33]
[1752479055443,9.5651,166.76,166.75,3.33]
[1752479055642,3.57,166.75,166.73,3.33]
[1752479056045,9.5655,166.75,166.73,3.33]
[1752479056243,3.57,166.75,166.73,3.33]
[1752479056441,3.57,166.75,166.74,3.33]
[1752479056938,3.16102837,166.78,166.75,3.33]
[1752479057145,3.57,166.78,166.72,3.33]
[1752479057341,9.5648,166.78,166.72,6.49102837]
[1752479057546,3.57,166.79,166.76,3.33]
[1752479057736,3.57,166.79,166.72,3.16102837]
[1752479057737,3.57,166.78,166.77,3.33]
[1752479058143,3.57,166.78,166.72,3.16102837]
[1752479058444,3.57,166.77,166.76,3.33]
[1752479059042,9.5648,166.77,166.72,3.16102837]
[1752479059241,3.57,166.78,166.74,3.33]
[1752479059436,6.73102837,166.75,166.74,3.33]
[1752479059744,3.57,166.75,166.74,3.33]
[1752479060346,9.5651,166.76,166.75,3.33]
[1752479060546,3.57,166.76,166.75,3.33]
[1752479060742,9.5651,166.76,166.75,3.33]
[1752479061140,3.57,166.75,166.73,3.33]
[1752479061343,3.57,166.75,166.74,3.33]
[1752479062642,9.5648,166.77,166.74,3.33]
[1752479062847,3.57,166.77,166.7,3.33]
[1752479064140,3.16102837,166.76,166.64,3.16102837]
[1752479064347,3.57,166.75,166.68,3.33]
[1752479064646,5.9958,166.75,166.7,5.997]
[1752479064842,3.57,166.74,166.71,3.33]
[1752479065244,3.57,166.76,166.71,3.33]
[1752479065448,3.57,166.75,166.71,3.33]
[1752479065641,9.5656,166.75,166.71,3.33]
[1752479066038,3.57,166.75,166.71,3.33]
[1752479066238,3.16102837,166.78,166.71,3.33]
[1752479066442,3.57,166.77,166.71,3.33]
[1752479066850,9.5651,166.77,166.72,5.9965]
[1752479067052,3.57,166.76,166.73,3.33]
[1752479068240,3.57,166.76,166.72,5.9965]
[1752479068241,3.57,166.76,166.74,3.33]
[1752479068443,3.57,166.75,166.74,3.33]
[1752479069451,3.57,166.75,166.71,3.33]
[1752479069452,3.57,166.74,166.71,3.33]
[1752479070149,3.57,166.74,166.71,5.9969]
[1752479070349,5.9955,166.75,166.72,3.33]
[1752479070651,5.9955,166.75,166.7,5.9972]
[1752479070850,3.57,166.74,166.73,3.33]
[1752479072453,5.9952,166.76,166.7,3.16102837]
[1752479072650,3.57,166.75,166.71,3.33]
[1752479072848,3.57,166.75,166.68,3.16102837]
[1752479073054,3.57,166.75,166.72,3.33]
[1752479073754,3.57,166.73,166.72,3.33]
[1752479075749,9.5662,166.73,166.72,3.33]
[1752479076258,3.57,166.73,166.72,3.33]
[1752479076460,3.16102837,166.75,166.67,3.16102837]
[1752479076757,3.45,166.74,166.68,3.49]
[1752479078159,9.4461,166.74,166.7,5.9972]
[1752479078350,3.16102837,166.75,166.71,3.49]
[1752479078552,3.45,166.73,166.71,3.49]
[1752479078752,9.4462,166.73,166.72,3.49]
[1752479079652,9.4462,166.73,166.69,5.9974]
[1752479079852,3.45,166.72,166.7,3.49]
[1752479080157,5.9962,166.73,166.7,3.49]
[1752479080158,3.45,166.71,166.7,3.49]
[1752479080357,3.45,166.7,166.6,3.49]
[1752479080660,3.45,166.68,166.65,3.49]
[1752479081256,3.45,166.68,166.66,5.9987]
[1752479081459,3.45,166.68,166.67,3.49]
[1752479082256,3.45,166.7,166.67,3.49]
[1752479082455,6.61102837,166.73,166.67,3.49]
[1752479082661,3.45,166.73,166.72,3.49]
[1752479082861,3.45,166.74,166.73,3.49]
[1752479083062,3.16102837,166.77,166.73,3.49]
[1752479083263,3.45,166.75,166.74,3.49]
[1752479083560,3.45,166.77,166.74,3.49]
[1752479083759,3.45,166.76,166.75,3.49]
[1752479084557,3.45,166.76,166.65,3.49]
[1752479084755,3.16102837,166.73,166.66,3.16102837]
[1752479084964,3.45,166.72,166.7,3.49]
[1752479085765,3.45,166.72,166.69,5.9976]
[1752479085965,3.45,166.72,166.71,3.49]
[1752479087772,9.4466,166.72,166.71,3.49]
[1752479088068,3.45,166.71,166.7,3.49]
[1752479088268,3.16102837,166.73,166.69,9.4876]
[1752479088570,3.45,166.71,166.7,3.49]
[1752479089372,9.15722837,166.73,166.7,3.49]
[1752479089576,12.60722837,166.73,166.7,3.49]
[1752479089777,12.60722837,166.73,166.71,3.49]
[1752479089977,9.15722837,166.73,166.71,3.49]
[1752479090187,3.45,166.72,166.71,3.49]
[1752479091384,3.45,166.71,166.7,3.49]
[1752479093382,3.45,166.69,166.68,3.49]
[1752479094880,9.4476,166.69,166.66,5.9986]
[1752479095080,3.45,166.68,166.67,3.49]
[1752479095383,3.45,166.67,166.66,3.49]
[1752479096578,12.60882837,166.69,166.66,3.49]
[1752479096782,3.45,166.68,166.66,5.9986]
[1752479096986,3.16102837,166.69,166.67,3.49]
[1752479097279,3.45,166.69,166.68,3.49]
[1752479097875,3.45,166.71,166.68,3.49]
[1752479098474,3.45,166.71,166.7,3.49]
[1752479098886,9.4469,166.71,166.7,3.49]
[1752479099085,3.45,166.7,166.67,3.49]
[1752479099282,3.45,166.7,166.68,3.49]
[1752479099778,3.45,166.69,166.66,5.9985]
[1752479099983,3.45,166.68,166.67,3.49]
[1752479100293,9.448,166.68,166.67,3.49]
[1752479100583,3.45,166.67,166.64,3.49]
[1752479100789,6.61102837,166.66,166.65,3.49]
[1752479101583,12.60972837,166.66,166.65,3.49]
[1752479101777,3.45,166.65,166.6,3.49]
[1752479101982,3.45,166.62,166.58,10.97697528]
[1752479102186,3.16102837,166.61,166.53,4.97547528]
[1752479102390,6.61102837,166.61,166.58,6.0013]
[1752479102589,3.16102837,166.61,166.53,3.16102837]
[1752479102788,6.61102837,166.65,166.6,3.49]
[1752479103089,3.45,166.65,166.62,3.49]
[1752479103388,3.45,166.65,166.6,3.49]
[1752479103585,6.61102837,166.68,166.62,3.49]
[1752479103890,3.45,166.66,166.62,3.49]
[1752479104293,3.45,166.64,166.63,3.49]
[1752479104880,9.4494,166.64,166.63,3.49]
[1752479105085,3.45,166.64,166.63,3.49]
[1752479105689,5.9992,166.65,166.63,3.49]
[1752479105891,9.4492,166.65,166.63,3.49]
[1752479106291,5.9992,166.65,166.63,3.49]
[1752479106491,3.66,166.64,166.63,3.49]
[1752479107681,3.66,166.64,166.53,6.574982]
[1752479107682,6.32205674,166.64,166.57,3.41]
[1752479107988,6.82102837,166.6,166.58,3.41]
[1752479108692,3.66,166.59,166.56,3.41]
[1752479108988,3.66,166.57,166.56,3.41]
[1752479109384,3.66,166.57,166.51,3.41]
[1752479109588,3.16102837,166.56,166.51,3.41]
[1752479109987,3.16102837,166.58,166.51,3.41]
[1752479110492,3.66,166.57,166.5,3.41]
[1752479110692,3.16102837,166.58,166.5,3.41]
[1752479110880,6.82102837,166.58,166.55,3.41]
[1752479111190,6.82102837,166.58,166.57,3.41]
[1752479111390,12.82262837,166.58,166.57,3.41]
[1752479111686,12.82262837,166.58,166.55,3.41]
[1752479111893,3.66,166.57,166.54,3.41]
[1752479112093,6.82102837,166.56,166.54,3.41]
[1752479112285,3.16102837,166.56,166.54,3.41]
[1752479112485,3.16102837,166.56,166.48,3.41]
[1752479112686,3.16102837,166.56,166.5,3.41]
[1752479113090,3.66,166.57,166.5,3.41]
[1752479113291,3.66,166.59,166.53,3.16102837]
[1752479113595,3.66,166.59,166.56,6.0021]
[1752479113890,3.16102837,166.6,166.57,3.41]
[1752479114093,6.82102837,166.58,166.5,6.57102837]
[1752479114292,6.82102837,166.58,166.5,3.16102837]
[1752479114593,3.66,166.57,166.55,3.41]
[1752479114783,3.66,166.57,166.56,3.41]
[1752479116695,9.6624,166.56,166.53,3.41]
[1752479116900,3.66,166.55,166.53,3.41]
[1752479117290,9.6628,166.55,166.54,3.41]
[1752479118093,9.6628,166.55,166.51,6.0041]
[1752479118294,3.66,166.55,166.54,3.41]
[1752479118495,3.66,166.57,166.55,3.41]
[1752479118686,3.66,166.56,166.55,3.41]
[1752479118885,6.82102837,166.58,166.5,3.16102837]
[1752479119096,3.66,166.58,166.53,3.41]
[1752479119292,3.16102837,166.6,166.53,3.41]
[1752479119593,3.66,166.57,166.54,3.41]
[1752479119998,182.38,166.61,166.55,3.41]
[1752479119999,3.66,166.61,166.55,3.41]
[1752479120196,9.6606,166.61,166.55,3.41]
[1752479120587,9.6606,166.61,166.58,3.41]
[1752479120784,9.6606,166.61,166.59,3.41]
[1752479120987,9.6609,166.6,166.59,3.41]
[1752479121187,9.6609,166.6,166.57,3.41]
[1752479121388,3.66,166.59,166.58,3.41]
[1752479121792,3.66,166.59,166.56,6.0022]
[1752479122092,3.66,166.56,166.5,3.41]
[1752479122497,9.16332837,166.57,166.53,6.0032]
[1752479122797,3.66,166.55,166.54,3.41]
[1752479123097,518.56,166.62,166.55,3.41]
[1752479123299,3.66,166.59,166.55,3.41]
[1752479123701,9.6613,166.59,166.56,3.41]
[1752479123900,6.82102837,166.61,166.56,3.41]
[1752479124202,9.6611,166.6,166.57,3.41]
[1752479124402,9.6611,166.6,166.58,3.41]
[1752479124898,3.66,166.59,166.58,3.41]
[1752479125693,3.66,166.58,166.57,3.41]
[1752479125897,6.0013,166.59,166.57,3.41]
[1752479126197,6.0013,166.59,166.54,3.41]
[1752479126396,9.6613,166.59,166.54,3.41]
[1752479126803,6.0016,166.58,166.57,3.41]
[1752479127197,6.0023,166.57,166.47,3.41]
[1752479127502,9.6623,166.57,166.53,3.41]
[1752479127703,3.66,166.57,166.54,6.003]
[1752479127894,3.16102837,166.6,166.55,3.41]
[1752479128098,3.66,166.59,166.55,3.41]
[1752479128299,9.6616,166.59,166.55,6.0024]
[1752479128499,9.6616,166.59,166.57,3.41]
[1752479128699,9.6616,166.59,166.58,3.41]
[1752479129102,3.16102837,166.6,166.54,3.16102837]
[1752479129103,3.66,166.6,166.54,3.16102837]
[1752479129404,3.66,166.6,166.59,3.41]
[1752479129899,182.24,166.61,166.59,3.41]
[1752479130402,182.24,166.61,166.58,3.16102837]
[1752479130403,182.24,166.61,166.6,3.41]
[1752479130606,3.66,166.66,166.61,3.41]
[1752479130813,3.66,166.68,166.62,3.16102837]
[1752479131008,3.66,166.68,166.63,3.41]
[1752479131207,3.66,166.68,166.65,9.409]
[1752479131406,185.88,166.69,166.68,3.41]
[1752479132903,191.8776,166.69,166.68,3.41]
[1752479133105,188.2176,166.69,166.68,3.41]
[1752479133305,182.22,166.69,166.68,3.41]
[1752479133808,3.66,166.73,166.67,3.41]
[1752479134010,185.8,166.72,166.67,3.41]
[1752479135011,185.8,166.72,166.68,5.9977]
[1752479135205,182.14,166.72,166.69,3.41]
[1752479135509,9.6554,166.76,166.71,5.9967]
[1752479135702,3.66,166.76,166.72,3.41]
[1752479136108,182.1,166.77,166.73,5.9959]
[1752479136309,185.63,166.77,166.75,3.64]
[1752479137307,3.53,166.76,166.75,3.64]
[1752479137606,3.53,166.75,166.71,3.64]
[1752479137807,9.5258,166.75,166.71,3.64]
[1752479138513,5.9958,166.75,166.69,3.64]
[1752479139208,9.5258,166.75,166.72,3.64]
[1752479139407,9.5258,166.75,166.73,3.64]
[1752479141615,5.9953,166.76,166.74,3.64]
[1752479141818,9.5253,166.76,166.75,3.64]
[1752479142610,181.9,166.77,166.75,3.64]
[1752479143207,185.43,166.77,166.76,3.64]
[1752479143612,181.9,166.77,166.76,3.64]
[1752479144903,185.43,166.77,166.76,3.64]
[1752479145103,191.4251,166.77,166.74,3.64]
[1752479145317,3.53,166.76,166.71,3.64]
[1752479146104,3.53,166.76,166.72,5.9963]
[1752479146309,181.9,166.77,166.73,3.64]
[1752479147021,185.35,166.8,166.74,3.64]
[1752479147314,9.5241,166.79,166.74,3.64]
[1752479147910,9.5241,166.79,166.75,5.9952]
[1752479148114,9.5241,166.79,166.76,3.64]
[1752479148412,9.5241,166.79,166.77,3.64]
[1752479148615,3.53,166.78,166.77,3.64]
[1752479148806,3.53,166.78,166.71,5.27464389]
[1752479149009,3.53,166.77,166.76,3.64]
[1752479150323,9.5248,166.77,166.76,3.64]
[1752479150717,3.53,166.77,166.76,3.64]
[1752479151021,9.5245,166.78,166.77,3.64]
[1752479151417,3.53,166.78,166.77,3.64]
[1752479151617,181.78,166.8,166.77,3.64]
[1752479151812,185.31,166.8,166.78,3.64]
[1752479152017,3.53,166.79,166.78,3.64]
[1752479152319,3.53,166.78,166.75,3.64]
[1752479152517,181.78,166.8,166.75,3.64]
[1752479152825,3.53,166.79,166.75,3.64]
[1752479153317,3.53,166.78,166.75,9.6352]
[1752479153619,3.53,166.78,166.72,5.27464389]
[1752479153823,3.53,166.78,166.73,3.64]
[1752479154016,191.3038,166.8,166.73,3.64]
[1752479155420,3.53,166.79,166.76,3.64]
[1752479155718,3.53,166.78,166.77,3.64]
[1752479156222,8.80464389,166.78,166.74,3.64]
[1752479156422,5.27464389,166.78,166.74,3.64]
[1752479156620,3.53,166.76,166.71,3.64]
[1752479156820,3.53,166.76,166.67,3.64]
[1752479156821,3.53,166.75,166.67,3.64]
[1752479157018,6.69607538,166.75,166.68,3.16607538]
[1752479157318,3.53,166.74,166.71,5.9969]
[1752479157522,3.53,166.74,166.73,3.64]
[1752479157721,9.5259,166.74,166.73,3.64]
[1752479159120,3.16607538,166.75,166.68,3.16607538]
[1752479159321,3.16607538,166.75,166.69,3.64]
[1752479159522,12.69177538,166.75,166.72,3.64]
[1752479159713,3.53,166.74,166.72,3.64]
[1752479159915,3.53,166.73,166.72,3.64]
[1752479160313,6.69607538,166.73,166.7,3.64]
[1752479160519,202.96607538,166.8,166.7,3.64]
[1752479160520,6.69607538,166.71,166.7,3.64]
[1752479160919,3.53,166.7,166.64,3.64]
[1752479161125,3.53,166.66,166.65,3.64]
[1752479161425,3.53,166.66,166.64,3.64]
[1752479161624,3.53,166.71,166.65,3.64]
[1752479161819,6.69607538,166.67,166.64,3.64]
[1752479162025,3.53,166.64,166.58,3.16607538]
[1752479162320,3.53,166.64,166.57,3.64]
[1752479162525,6.69607538,166.63,166.57,3.64]
[1752479162928,3.53,166.63,166.57,3.64]
[1752479164331,5.9997,166.64,166.59,6.0012]
[1752479164629,3.53,166.62,166.6,3.64]
[1752479164827,5.28402139,166.65,166.6,3.64]
[1752479165030,3.53,166.61,166.6,3.64]
[1752479165230,3.53,166.61,166.55,3.64]
[1752479165427,5.28402139,166.63,166.59,3.64]
[1752479165726,5.28402139,166.63,166.54,5.28402139]
[1752479165927,6.0005,166.62,166.57,6.0019]
[1752479166123,3.51,166.6,166.54,5.28402139]
[1752479166424,3.51,166.62,166.59,6.001]
[1752479166626,3.51,166.63,166.54,5.28402139]
[1752479166826,3.51,166.63,166.55,3.65]
[1752479167025,3.51,166.63,166.54,5.28402139]
[1752479167026,3.51,166.62,166.59,3.65]
[1752479167227,3.51,166.61,166.6,3.65]
[1752479167426,6.0001,166.63,166.6,3.65]
[1752479167427,3.51,166.63,166.6,3.65]
[1752479167627,3.51,166.62,166.61,3.65]
[1752479167830,3.51,166.63,166.56,5.28402139]
[1752479168126,3.51,166.64,166.56,5.28402139]
[1752479168328,3.51,166.64,166.57,3.65]
[1752479168836,3.51,166.63,166.6,3.65]
[1752479169531,3.51,166.63,166.6,6.0008]
[1752479169726,3.51,166.63,166.62,3.65]
[1752479170233,3.51,166.64,166.56,5.28402139]
[1752479170436,3.51,166.64,166.57,3.65]
[1752479170634,3.51,166.64,166.61,6.0003]
[1752479170839,3.51,166.64,166.62,3.65]
[1752479171128,9.5092,166.65,166.62,3.65]
[1752479171333,3.51,166.64,166.62,3.65]
[1752479171536,5.9992,166.65,166.62,3.65]
[1752479171732,3.51,166.64,166.62,3.65]
[1752479171932,3.51,166.64,166.56,5.28402139]
[1752479172228,3.51,166.64,166.57,3.65]
[1752479172532,3.51,166.64,166.61,6.0003]
[1752479172839,11.28282139,166.66,166.62,3.65]
[1752479173130,5.9991,166.65,166.61,3.65]
[1752479173336,3.51,166.64,166.56,5.28402139]
[1752479173529,3.51,166.64,166.62,3.65]
[1752479173926,3.51,166.63,166.62,3.65]
[1752479174539,5.28402139,166.66,166.56,5.28402139]
[1752479174740,3.51,166.64,166.63,3.65]
[1752479177335,3.51,166.64,166.61,9.6504]
[1752479177533,3.51,166.63,166.62,3.65]
[1752479178041,3.51,166.65,166.62,3.65]
[1752479178243,3.51,166.64,166.63,3.65]
[1752479179640,5.9992,166.65,166.61,6.0002]
[1752479179839,3.51,166.63,166.62,3.65]
[1752479184947,9.5098,166.63,166.62,3.65]
[1752479185148,3.51,166.63,166.57,3.17022047]
[1752479185350,3.51,166.63,166.58,3.65]
[1752479185944,6.0002,166.62,166.59,6.001]
[1752479186144,3.51,166.62,166.6,3.65]
[1752479186441,9.5102,166.62,166.6,3.65]
[1752479186644,3.51,166.61,166.58,3.65]
[1752479187255,9.5107,166.61,166.58,6.0016]
[1752479187445,3.51,166.6,166.59,3.65]
[1752479187847,3.17022047,166.62,166.54,3.17022047]
[1752479188050,3.51,166.59,166.55,3.65]
[1752479188444,3.51,166.59,166.57,3.65]
[1752479188651,3.51,166.59,166.58,3.65]
[1752479189048,9.5113,166.59,166.58,3.65]
[1752479189354,3.51,166.59,166.58,3.65]
[1752479190250,3.51,166.59,166.58,9.6517]
[1752479190641,3.51,166.59,166.58,3.65]
[1752479190852,3.51,166.59,166.53,3.65]
[1752479191250,3.51,166.59,166.56,6.0021]
[1752479191643,3.17022047,166.6,166.57,3.65]
[1752479191848,3.51,166.59,166.58,3.65]
[1752479193352,3.51,166.6,166.54,3.17022047]
[1752479193554,3.51,166.62,166.59,3.65]
[1752479194256,3.51,166.64,166.59,3.65]
[1752479194648,3.51,166.64,166.61,6.0004]
[1752479194951,3.51,166.63,166.62,3.65]
[1752479196156,3.4,166.64,166.62,6.0002]
[1752479196456,3.4,166.64,166.63,3.48]
[1752479197544,3.4,166.69,166.63,3.48]
[1752479197754,3.4,166.69,166.56,3.17022047]
[1752479197755,3.4,166.69,166.65,3.48]
[1752479198159,3.4,166.68,166.66,5.9986]
[1752479198351,3.4,166.68,166.67,3.48]
[1752479198649,181.16,166.7,166.64,3.17022047]
[1752479198858,184.56,166.7,166.65,3.48]
[1752479199760,181.16,166.7,166.65,3.48]
[1752479199950,3.4,166.69,166.65,3.48]
[1752479200149,3.4,166.69,166.67,5.9982]
[1752479200358,181.16,166.7,166.68,3.48]
[1752479200553,3.4,166.71,166.68,3.48]
[1752479201048,3.4,166.71,166.7,3.48]
[1752479201250,3.4,166.71,166.65,3.48]
[1752479201450,3.4,166.7,166.67,5.9982]
[1752479201647,3.4,166.7,166.68,3.48]
[1752479201946,3.17022047,166.72,166.67,3.48]
[1752479202148,3.17022047,166.7,166.67,3.48]
[1752479202649,3.4,166.68,166.67,3.48]
[1752479203052,3.4,166.68,166.62,3.48]
[1752479203355,3.4,166.68,166.65,5.9988]
[1752479203559,3.4,166.68,166.62,3.48]
[1752479203758,3.4,166.68,166.63,3.17022047]
[1752479203955,3.4,166.7,166.68,3.48]
[1752479204158,3.4,166.69,166.68,3.48]
[1752479204458,6.57022047,166.71,166.66,3.48]
[1752479204654,3.17022047,166.73,166.66,3.48]
[1752479204859,3.17022047,166.71,166.66,3.48]
[1752479205058,9.16752047,166.71,166.67,5.9984]
[1752479205259,3.4,166.69,166.68,3.48]
[1752479205850,3.17022047,166.71,166.67,3.48]
[1752479206051,3.4,166.7,166.67,3.48]